bitfinex/quotes_ETHUSD_20260216
["timestamp","ask_amount","ask_price","bid_price","bid_amount"]
[1771248307633,0.48888133,2000.9,1999.4,1.411]
[1771248307836,0.48888133,2000.7,1999.4,1.411]
[1771248308036,0.48888133,2001.1,1999.5,9.34717564]
[1771248308440,0.48888133,2001.1,1999.7,0.46473003]
[1771248308667,9.34717564,2002.0,2000.0,0.18685624]
[1771248308668,0.48888133,2001.7,2000.0,0.18685624]
[1771248308870,0.48888133,2001.7,2000.1,1.411]
[1771248309178,0.48888133,2001.7,2000.2,0.18685624]
[1771248309474,0.48888133,2001.7,2000.3,9.34717564]
[1771248309677,0.48888133,2001.6,2000.1,1.411]
[1771248309971,0.48888133,2001.6,2000.2,0.65158627]
[1771248310171,0.48888133,2001.6,2000.2,0.46473003]
[1771248310473,0.48888133,2001.6,2000.1,10.75817564]
[1771248311164,1.73789179,2001.6,2000.1,10.75817564]
[1771248311773,0.48888133,2001.5,2000.1,0.9]
[1771248311980,0.48888133,2001.5,2000.1,1.411]
[1771248312481,0.48888133,2002.1,2000.3,9.81190567]
[1771248312848,0.48888133,2002.1,2000.4,0.65158627]
[1771248313080,0.48888133,2001.9,2000.4,0.65158627]
[1771248313250,0.48888133,2001.9,2000.4,0.18685624]
[1771248313776,4.99272284,2003.1,2000.4,0.18685624]
[1771248313777,0.49994725,2002.3,2000.7,9.34717564]
[1771248313981,0.49994725,2002.3,2000.5,0.46473003]
[1771248313982,0.49994725,2002.3,2000.9,0.18685624]
[1771248314186,0.49994725,2002.3,2000.8,1.411]
[1771248314187,0.49994725,2002.7,2001.1,0.64651265]
[1771248314554,0.49994725,2002.7,2001.1,0.18685624]
[1771248315060,0.49994725,2002.4,2000.8,0.45965641]
[1771248315257,0.49994725,2002.4,2000.7,0.18685624]
[1771248315583,0.49994725,2002.4,2000.8,1.87065641]
[1771248315893,0.49994725,2002.4,2000.9,0.18685624]
[1771248316055,0.49994725,2002.4,2001.0,9.34717564]
[1771248316250,0.49994725,2002.4,2000.9,0.18685624]
[1771248316449,0.1035,2003.2,2001.3,9.34717564]
[1771248316450,0.49994725,2002.9,2001.3,9.34717564]
[1771248316662,0.49994725,2002.9,2001.4,0.511]
[1771248316881,0.0011,2003.2,2001.7,9.34717564]
[1771248317083,1.74907249,2003.2,2001.7,9.34717564]
[1771248317383,0.49994725,2003.1,2001.7,9.34717564]
[1771248317586,0.49994725,2002.9,2001.6,0.511]
[1771248317884,0.49994725,2002.9,2001.7,0.511]
[1771248319182,0.49994725,2002.7,2001.7,0.511]
[1771248321380,0.49994725,2002.6,2001.7,0.511]
[1771248322458,0.49994725,2002.6,2001.4,1.411]
[1771248322755,0.49994725,2002.6,2001.4,0.511]
[1771248323297,0.49994725,2002.6,2001.2,0.9]
[1771248323298,0.49994725,2002.4,2001.2,0.511]
[1771248323467,0.49994725,2002.4,2000.3,0.001]
[1771248323468,0.49994725,2002.0,2000.3,0.001]
[1771248323790,0.49994725,2001.6,2000.4,0.511]
[1771248323961,0.49994725,2001.4,2000.4,0.511]
[1771248324457,0.9,2001.6,2000.0,0.001]
[1771248324458,0.49994725,2001.0,2000.0,0.001]
[1771248324761,0.49994725,2000.8,2000.0,0.001]
[1771248325367,0.49994725,2000.6,2000.0,0.001]
[1771248325761,0.97,2000.9,2000.0,0.001]
[1771248325959,1.46994725,2000.9,2000.0,0.001]
[1771248326385,0.49994725,2000.9,2000.0,0.001]
[1771248327010,0.49994725,2001.1,2000.0,0.001]
[1771248327298,0.49994725,2000.9,2000.0,0.001]
[1771248327461,0.49994725,2000.7,2000.0,0.001]
[1771248327993,1.24950019,2000.8,1998.9,0.46265641]
[1771248327994,0.49994725,1999.9,1999.6,0.0008]
[1771248328365,0.49994725,1999.9,1998.9,0.003]
[1771248328663,0.49994725,1999.9,1999.6,0.0008]
[1771248328664,0.49994725,1999.7,1999.6,0.0008]
[1771248328994,0.49994725,1999.4,1998.9,0.003]
[1771248329504,0.49994725,1999.2,1998.9,0.003]
[1771248329711,0.49994725,1999.2,1997.8,1.18481233]
[1771248329712,0.49994725,1998.8,1997.8,1.18481233]
[1771248330059,0.49994725,1998.8,1997.0,0.125]
[1771248330060,0.49994725,1998.6,1997.1,1.411]
[1771248330260,0.49994725,1998.3,1997.0,0.125]
[1771248330508,0.49994725,1998.1,1997.0,0.125]
[1771248330823,0.49994725,1997.9,1996.4,0.9]
[1771248331109,0.49994725,1998.4,1996.6,9.34717564]
[1771248331403,0.49994725,1998.4,1996.4,1.35965641]
[1771248331404,0.49994725,1998.0,1996.5,0.901]
[1771248331699,0.49994725,1997.8,1996.2,10.24817564]
[1771248331859,0.49994725,1998.2,1996.6,9.34717564]
[1771248332065,0.49994725,1998.2,1996.1,1.25238726]
[1771248332066,0.49994725,1998.1,1996.1,9.34717564]
[1771248332304,0.49994725,1997.9,1996.1,9.34717564]
[1771248332462,0.49994725,1997.7,1996.2,1.412]
[1771248332986,0.49994725,1997.7,1995.8,0.901]
[1771248332987,0.49994725,1997.3,1995.8,0.901]
[1771248333506,0.49994725,1997.7,1996.0,9.34717564]
[1771248333810,0.49994725,1998.3,1996.4,9.34717564]
[1771248334109,0.49994725,1998.3,1995.8,2.15362129]
[1771248334110,0.49994725,1998.1,1996.5,0.511]
[1771248334316,0.49994725,1998.1,1996.6,1.412]
[1771248334685,0.49994725,1998.1,1996.3,9.29780198]
[1771248334686,0.49994725,1998.1,1996.7,1.412]
[1771248335522,0.49994725,1998.0,1996.7,1.412]
[1771248336321,0.49994725,1998.0,1996.3,8.83814557]
[1771248336612,0.49994725,1998.0,1996.7,1.412]
[1771248336968,0.49994725,1998.0,1995.9,5.01026513]
[1771248336969,12.685615,1997.7,1995.4,1.62175572]
[1771248337169,10.71314557,1997.9,1995.5,0.511]
[1771248337170,0.49994725,1997.6,1995.5,0.511]
[1771248337366,0.49994725,1997.6,1996.1,8.83814557]
[1771248337568,0.49994725,1997.9,1996.2,1.412]
[1771248338997,0.49994725,1997.9,1996.2,1.87165641]
[1771248339500,0.49994725,1997.9,1996.3,0.1024]
[1771248339800,0.49994725,1997.8,1996.4,1.412]
[1771248340594,0.01536382,1998.0,1996.4,1.412]
[1771248340978,0.49994725,1997.9,1996.4,1.412]
[1771248341180,0.49994725,1997.9,1996.3,0.001]
[1771248341380,0.49994725,1997.9,1996.4,0.511]
[1771248341575,0.49994725,1997.7,1996.4,0.511]
[1771248342673,0.01426382,1997.6,1996.4,0.511]
[1771248343378,0.51531107,1998.0,1996.4,0.511]
[1771248343681,0.01426382,1997.9,1996.4,0.511]
[1771248345178,0.49177967,1997.8,1996.4,0.511]
[1771248345401,0.50604349,1997.7,1996.4,0.511]
[1771248345719,0.49177967,1997.5,1996.3,0.001]
[1771248345913,5.02027102,1997.7,1996.3,0.001]
[1771248345914,0.49177967,1997.3,1996.3,0.001]
[1771248346073,0.01426382,1997.2,1996.3,0.001]
[1771248346483,0.01426382,1997.6,1996.3,0.001]
[1771248346696,0.01426382,1997.5,1996.3,0.001]
[1771248346891,0.01426382,1997.6,1996.3,0.001]
[1771248347285,0.01426382,1997.5,1996.3,0.001]
[1771248347486,0.01426382,1997.6,1996.3,0.001]
[1771248347700,0.01426382,1997.6,1996.3,0.0500909]
[1771248347900,0.46868777,1997.8,1996.3,0.0500909]
[1771248348884,0.46868777,1997.8,1996.4,8.83814557]
[1771248349092,0.46868777,1997.8,1996.5,0.04908598]
[1771248349280,0.46868777,1997.8,1996.6,0.902]
[1771248349491,0.46868777,1997.8,1996.7,0.56008106]
[1771248350727,0.46868777,1997.8,1996.7,0.04908106]
[1771248350897,0.46868777,1997.8,1996.7,0.512]
[1771248351099,0.01426382,1997.8,1996.7,0.56107368]
[1771248351322,0.01536382,1998.0,1996.7,0.56107368]
[1771248351624,0.45442395,1997.9,1996.7,0.04907368]
[1771248351831,0.46868777,1997.8,1996.7,0.512]
[1771248352137,0.46868777,1997.8,1996.4,0.512]
[1771248352514,0.45442395,1997.7,1996.4,0.512]
[1771248352718,0.45442395,1997.5,1996.3,0.001]
[1771248353010,0.46868777,1997.4,1996.3,0.001]
[1771248353239,0.01426382,1997.4,1996.3,0.001]
[1771248353393,0.46868777,1997.7,1996.3,0.001]
[1771248353920,0.46868777,1997.7,1996.6,8.67584829]
[1771248354228,0.45442395,1997.6,1996.3,0.001]
[1771248354434,0.01426382,1997.5,1996.3,0.001]
[1771248354594,0.01426382,1997.5,1996.4,0.001]
[1771248354792,0.45442395,1997.6,1996.4,0.001]
[1771248354996,0.46868777,1997.5,1996.5,0.512]
[1771248355391,0.46868777,1997.5,1996.4,0.001]
[1771248355802,0.45442395,1997.3,1996.4,0.001]
[1771248356025,0.46868777,1997.2,1996.4,0.001]
[1771248356195,0.45442395,1997.0,1996.4,0.001]
[1771248356395,0.46868777,1997.0,1996.4,0.001]
[1771248356614,0.45442395,1997.0,1996.4,0.001]
[1771248357825,0.01426382,1997.4,1996.1,0.003]
[1771248357826,2.67791427,1996.9,1996.1,0.003]
[1771248358029,0.46868777,1997.1,1996.1,0.003]
[1771248358332,0.45442395,1997.5,1996.1,8.67884829]
[1771248358628,0.45442395,1997.3,1996.1,8.67884829]
[1771248358813,0.01426382,1997.2,1996.1,0.003]
[1771248359014,0.45442395,1997.3,1996.1,0.003]
[1771248359623,0.01426382,1997.2,1996.4,8.67584829]
[1771248359838,0.01426382,1997.2,1996.1,9.19084829]
[1771248360124,0.45442395,1997.4,1996.2,1.414]
[1771248360329,0.01426382,1997.3,1996.2,1.414]
[1771248360628,0.45442395,1997.3,1996.1,0.003]
[1771248360923,0.46868777,1997.2,1996.2,1.414]
[1771248361125,0.01426382,1997.2,1996.2,1.414]
[1771248361331,0.46868777,1997.5,1996.2,1.414]
[1771248362332,0.0011,1997.7,1996.5,8.67584829]
[1771248362506,0.01536382,1997.7,1996.5,8.67584829]
[1771248363428,0.45442395,1997.6,1996.2,1.414]
[1771248363633,0.46868777,1997.5,1996.2,1.414]
[1771248363929,0.45442395,1997.4,1996.2,1.414]
[1771248364130,0.01426382,1997.4,1996.2,1.414]
[1771248364427,0.01426382,1997.4,1996.4,8.67584829]
[1771248364730,0.46868777,1997.6,1996.4,8.67584829]
[1771248364932,0.46512777,1997.6,1996.4,8.67584829]
[1771248365104,0.01426382,1997.6,1996.4,8.67584829]
[1771248365305,0.0011,1997.7,1996.4,8.67584829]
[1771248365506,0.01536382,1997.7,1996.4,8.67584829]
[1771248365707,0.0011,1997.7,1996.4,8.67584829]
[1771248365906,0.01536382,1997.7,1996.3,8.83730217]
[1771248366135,0.0011,1997.7,1996.3,8.83730217]
[1771248366338,0.46978777,1997.7,1996.2,1.88329003]
[1771248366707,0.46978777,1997.7,1996.3,0.01195879]
[1771248367024,0.46978777,1997.7,1996.3,9.31855099]
[1771248367202,0.01536382,1997.7,1996.3,9.31855099]
[1771248367414,0.0011,1998.0,1996.8,8.83730217]
[1771248367622,0.0011,1998.0,1996.9,1.88329003]
[1771248367824,0.0011,1998.0,1996.9,0.46929003]
[1771248368007,0.0011,1998.0,1997.0,1.414]
[1771248368333,0.0011,1998.0,1997.2,8.83730217]
[1771248368843,0.0011,1997.7,1997.2,8.83730217]
[1771248369134,0.0011,1997.7,1997.0,1.414]
[1771248369433,0.0011,1997.7,1997.0,10.25130217]
[1771248369840,0.45552395,1997.7,1996.5,0.001]
[1771248370010,0.46978777,1997.7,1996.6,1.414]
[1771248370332,0.46978777,1997.7,1996.7,0.01205209]
[1771248370733,0.46978777,1997.7,1996.6,0.67693587]
[1771248372029,0.45442395,1997.6,1996.6,0.66488378]
[1771248372235,0.46868777,1997.5,1996.6,0.66488378]
[1771248372933,0.46868777,1997.5,1996.7,0.512]
[1771248374140,0.45442395,1997.5,1996.7,0.512]
[1771248374308,0.01426382,1997.4,1996.7,0.512]
[1771248374511,0.46677614,1997.4,1996.5,0.001]
[1771248376021,0.45251232,1997.2,1996.1,0.003]
[1771248376344,0.45251232,1997.2,1995.6,0.003]
[1771248376345,0.45251232,1997.0,1995.6,0.003]
[1771248376553,0.45251232,1996.6,1995.6,0.003]
[1771248376713,8.83730217,1996.9,1994.3,11.84530217]
[1771248376714,0.45251232,1996.4,1994.9,0.512]
[1771248376916,0.45251232,1996.0,1994.0,0.902]
[1771248377171,30.0,1995.7,1993.4,9.29812728]
[1771248377314,0.45251232,1995.4,1993.7,1.34257307]
[1771248377515,0.45251232,1995.2,1993.7,1.34257307]
[1771248377757,0.45251232,1995.0,1993.0,8.83730217]
[1771248378044,8.83730217,1995.7,1992.7,1.19802904]
[1771248378045,0.45251232,1994.6,1993.1,1.414]
[1771248378549,0.45251232,1994.6,1993.0,8.83730217]
[1771248378749,0.45251232,1994.4,1992.7,1.19802904]
[1771248378951,0.45251232,1994.2,1992.7,1.14802904]
[1771248379149,0.45251232,1994.2,1992.8,0.512]
[1771248379311,0.45251232,1994.2,1992.7,1.14802904]
[1771248379651,0.45251232,1994.0,1992.7,1.14802904]
[1771248379852,0.45251232,1993.8,1992.7,1.14802904]
[1771248380022,0.45251232,1993.8,1991.1,5.0223327]
[1771248380023,0.45251232,1993.4,1991.8,0.512]
[1771248380224,0.45251232,1993.2,1991.4,0.512]
[1771248380420,0.45251232,1993.2,1991.5,0.903]
[1771248380941,1.25394994,1993.7,1991.6,0.512]
[1771248380942,0.45251232,1993.0,1991.6,0.512]
[1771248381133,0.45251232,1994.2,1991.8,8.83730217]
[1771248381334,0.45251232,1993.9,1991.8,8.83730217]
[1771248381552,0.45251232,1993.9,1992.2,8.83730217]
[1771248381713,0.45251232,1993.9,1992.3,1.415]
[1771248382030,0.45251232,1993.9,1992.2,0.903]
[1771248382031,0.45251232,1993.7,1992.2,0.903]
[1771248382234,0.45251232,1993.7,1992.4,0.512]
[1771248382451,4.51368608,1995.2,1992.8,0.001]
[1771248382452,0.45251232,1994.1,1992.8,0.001]
[1771248383049,0.45251232,1994.7,1992.8,0.18785624]
[1771248383348,0.45251232,1994.7,1993.1,8.83730217]
[1771248383551,0.45251232,1994.7,1993.2,1.415]
[1771248383848,0.45251232,1995.3,1993.2,1.415]
[1771248384051,0.46677614,1995.3,1993.6,0.18685624]
[1771248384216,0.903,1996.2,1993.9,8.83730217]
[1771248384416,0.45251232,1995.7,1994.0,1.415]
[1771248384640,0.01426382,1996.1,1994.3,8.83730217]
[1771248384839,0.45251232,1996.2,1994.7,8.83730217]
[1771248385038,0.45251232,1996.2,1994.2,0.75008135]
[1771248385039,0.45251232,1996.0,1994.8,1.415]
[1771248385351,0.46677614,1995.9,1994.9,0.512]
[1771248385650,0.46677614,1995.9,1994.7,0.903]
[1771248385850,0.46677614,1995.9,1994.8,0.512]
[1771248386460,0.46677614,1995.9,1994.1,8.83730217]
[1771248386617,0.46677614,1995.9,1993.7,0.46082511]
[1771248386618,0.45251232,1995.8,1994.2,1.415]
[1771248386819,0.45251232,1995.3,1993.7,0.903]
[1771248387031,0.45251232,1995.1,1993.8,1.415]
[1771248387368,0.45251232,1995.5,1993.8,10.25230217]
[1771248387869,0.45251232,1995.5,1994.2,8.83730217]
[1771248388036,0.01426382,1995.4,1994.2,8.83730217]
[1771248388237,10.65741,1995.7,1994.3,1.415]
[1771248388438,0.46677614,1995.6,1994.3,1.415]
[1771248388673,0.42997614,1995.6,1994.3,1.415]
[1771248388849,0.42997614,1995.6,1994.4,0.01427239]
[1771248389045,0.42997614,1995.6,1994.3,0.01427239]
[1771248389241,0.42997614,1995.6,1994.4,0.512]
[1771248391340,0.45251232,1996.3,1994.5,8.83730217]
[1771248391541,8.999842,1995.9,1994.4,0.512]
[1771248391755,1.25225629,1996.4,1994.4,0.512]
[1771248391756,0.45251232,1995.8,1994.4,0.512]
[1771248395351,0.45251232,1996.2,1994.6,8.83730217]
[1771248396272,0.45251232,1996.7,1995.0,8.83730217]
[1771248396439,0.45251232,1996.7,1995.1,1.415]
[1771248397045,0.45251232,1997.1,1995.4,8.83730217]
[1771248397569,0.45251232,1997.1,1994.5,5.32632642]
[1771248397570,0.45251232,1996.9,1994.5,2.02705543]
[1771248397773,0.45251232,1996.5,1995.0,0.903]
[1771248398143,0.45251232,1996.3,1995.0,0.903]
[1771248400262,0.45251232,1996.2,1995.0,0.903]
[1771248401777,0.45251232,1996.8,1995.1,8.83730217]
[1771248401953,0.45251232,1996.8,1994.3,0.28925624]
[1771248401954,0.45251232,1996.8,1994.3,0.1024]
[1771248402156,0.45251232,1996.2,1994.4,1.415]
[1771248403149,0.45251232,1996.2,1994.5,1.415]
[1771248403349,18.48954,1995.5,1992.9,9.29812728]
[1771248403652,0.45251232,1995.2,1993.3,8.83730217]
[1771248403877,0.45251232,1995.2,1993.3,9.29516069]
[1771248404079,0.45251232,1995.2,1993.3,8.83730217]
[1771248404376,0.47853493,1995.0,1993.3,8.83730217]
[1771248404549,0.47853493,1995.0,1993.4,1.415]
[1771248404756,0.47853493,1995.0,1993.5,1.415]
[1771248405057,0.47853493,1994.8,1993.5,1.415]
[1771248405263,0.47853493,1994.8,1993.2,0.903]
[1771248405581,0.47853493,1994.4,1993.0,0.512]
[1771248406151,0.47853493,1994.2,1993.0,0.512]
[1771248406953,0.47586521,1994.7,1993.0,0.512]
[1771248407266,0.47586521,1994.3,1993.1,0.5265791]
[1771248407458,0.47586521,1994.3,1993.1,0.512]
[1771248407855,0.47586521,1994.3,1992.8,0.001]
[1771248408062,0.47586521,1994.3,1992.9,0.512]
[1771248408272,0.47586521,1994.1,1992.9,0.512]
[1771248409453,0.47586521,1994.1,1993.0,0.0145725]
[1771248409670,0.47586521,1994.1,1992.9,0.512]
[1771248409671,0.47586521,1994.1,1992.9,0.5265725]
[1771248410072,0.47586521,1994.1,1992.9,0.512]
[1771248410292,0.47586521,1993.9,1992.8,0.0155725]
[1771248410490,0.47586521,1993.9,1992.8,0.001]
[1771248410681,0.47586521,1993.7,1992.8,0.001]
[1771248411202,0.47286521,1993.7,1992.8,0.001]
[1771248411799,0.47286521,1993.7,1993.0,0.001]
[1771248412000,0.47286521,1993.7,1992.8,0.001]
[1771248412372,0.47586521,1993.5,1992.9,0.001]
[1771248412575,0.47586521,1993.3,1992.9,0.001]
[1771248412800,0.47586521,1993.3,1991.7,0.512]
[1771248412801,21.850426,1993.0,1991.7,0.512]
[1771248412976,0.47586521,1992.9,1991.8,0.002]
[1771248413177,0.47586521,1992.7,1991.8,0.002]
[1771248414378,0.47586521,1992.5,1991.8,0.002]
[1771248415498,0.47586521,1992.5,1991.1,1.416]
[1771248415694,0.47586521,1992.5,1991.2,0.002]
[1771248417312,0.47586521,1992.5,1991.3,0.512]
[1771248417510,0.47586521,1992.5,1991.3,1.416]
[1771248417909,0.47586521,1992.5,1991.4,0.002]
[1771248418211,5.01710681,1993.2,1991.4,0.002]
[1771248418212,0.47586521,1993.3,1991.4,0.49772621]
[1771248418379,8.88006257,1994.2,1991.3,10.29606257]
[1771248418380,0.47586521,1993.8,1991.9,0.49772621]
[1771248418582,0.47586521,1993.8,1991.5,0.29125624]
[1771248418583,0.47586521,1993.6,1992.0,1.418]
[1771248418785,0.47586521,1993.6,1992.1,1.416]
[1771248418983,0.47586521,1993.4,1991.7,0.002]
[1771248419183,0.47586521,1993.4,1992.0,0.904]
[1771248419720,0.47586521,1993.4,1992.1,0.002]
[1771248419915,0.47586521,1993.8,1992.1,0.002]
[1771248420080,0.47586521,1993.6,1992.1,0.002]
[1771248420284,2.1578386,1993.9,1992.1,0.002]
[1771248420285,0.47586521,1993.3,1992.1,0.002]
[1771248420836,1.25414356,1993.4,1991.2,0.904]
[1771248420837,29.07355,1992.8,1991.2,0.904]
[1771248421036,0.47586521,1992.7,1991.3,0.002]
[1771248421314,0.47586521,1992.7,1991.3,0.0166582]
[1771248421483,0.904,1993.0,1991.5,8.88006257]
[1771248421687,0.47586521,1993.1,1991.6,0.01465599]
[1771248422016,0.47586521,1993.1,1991.6,0.01665599]
[1771248422315,0.47586521,1993.1,1991.7,0.904]
[1771248422611,0.47586521,1993.1,1991.8,0.002]
[1771248422780,0.47586521,1993.1,1991.8,0.01665451]
[1771248423379,0.95,1993.9,1991.8,0.01665451]
[1771248423380,0.47586521,1993.6,1991.8,0.01665451]
[1771248423578,0.904,1993.9,1991.8,0.01665451]
[1771248423579,0.47586521,1993.2,1991.8,0.002]
[1771248423813,0.47586521,1993.0,1991.8,0.002]
[1771248425116,1.25440735,1993.0,1991.8,0.002]
[1771248425335,0.47586521,1992.9,1991.8,0.002]
[1771248425539,0.47586521,1992.7,1991.2,0.001]
[1771248425737,2.15839116,1993.0,1991.2,0.001]
[1771248425738,0.47586521,1992.5,1991.2,0.001]
[1771248426322,0.47586521,1992.3,1991.2,0.001]
[1771248427613,0.47586521,1992.7,1991.2,0.001]
[1771248427813,1.73048256,1992.7,1991.2,0.001]
[1771248428050,0.47586521,1992.7,1991.2,0.001]
[1771248428369,0.47586521,1993.2,1991.3,8.88006257]
[1771248428646,0.47586521,1993.2,1991.4,0.4993652]
[1771248428834,0.47586521,1993.2,1991.7,8.88006257]
[1771248429033,0.47586521,1993.2,1991.8,1.416]
[1771248429635,0.904,1993.3,1991.8,1.416]
[1771248429823,0.47586521,1993.5,1991.8,1.416]
[1771248430021,6.86732568,1993.9,1992.0,9.16931881]
[1771248430022,0.47586521,1993.9,1992.0,9.16931881]
[1771248430216,0.47586521,1993.7,1992.1,0.512]
[1771248430420,0.47586521,1993.5,1991.7,8.88006257]
[1771248430617,1.25401284,1993.6,1991.8,1.416]
[1771248430618,0.47586521,1993.4,1991.8,1.416]
[1771248430821,0.47586521,1993.4,1991.7,8.88006257]
[1771248430822,0.47586521,1993.2,1991.3,0.904]
[1771248431018,0.47586521,1993.2,1991.4,0.512]
[1771248431247,0.47586521,1993.0,1991.4,0.512]
[1771248432362,1.25456656,1992.8,1991.4,0.512]
[1771248432575,10.759407,1992.5,1991.3,0.904]
[1771248432719,0.47586521,1992.6,1989.0,0.4993652]
[1771248432720,30.0,1992.0,1989.0,0.4993652]
[1771248432926,8.88006257,1991.7,1989.6,0.904]
[1771248433220,2.96182715,1991.6,1989.6,8.88006257]
[1771248433435,0.952,1991.9,1990.0,8.88006257]
[1771248433630,12.26855,1991.7,1990.0,8.88006257]
[1771248433832,2.96655939,1991.6,1990.0,8.88006257]
[1771248434039,1.856,1992.3,1990.0,9.36700498]
[1771248434232,3.44252841,1992.2,1990.4,8.88006257]
[1771248434432,3.44252841,1992.2,1990.1,0.67379865]
[1771248434433,1.73409299,1991.9,1990.5,1.416]
[1771248434633,0.47900991,1991.9,1990.5,1.416]
[1771248434933,1.73387797,1992.3,1990.5,1.416]
[1771248435133,2.96695299,1992.2,1990.6,8.88006257]
[1771248435449,0.47900991,1991.8,1990.5,1.416]
[1771248435752,2.96676834,1991.7,1991.0,0.003]
[1771248435957,0.47900991,1992.3,1991.1,0.512]
[1771248436158,0.47900991,1992.3,1991.2,0.904]
[1771248436327,0.47900991,1992.3,1991.0,0.003]
[1771248436328,0.47900991,1991.9,1991.0,0.003]
[1771248436522,2.71188586,1991.8,1991.0,0.003]
[1771248436722,0.47900991,1991.9,1991.0,0.003]
[1771248437057,1.43300991,1992.4,1991.0,0.515]
[1771248437261,2.712053,1992.3,1991.0,0.515]
[1771248437426,2.712053,1992.2,1991.0,0.515]
[1771248437629,2.712053,1992.1,1991.0,0.515]
[1771248437923,0.47900991,1992.3,1991.0,0.515]
[1771248438130,0.954,1992.4,1991.0,0.515]
[1771248438131,0.47900991,1991.9,1991.0,0.515]
[1771248438524,0.47900991,1992.3,1991.0,0.515]
[1771248438738,2.71420293,1992.2,1991.0,0.515]
[1771248438923,0.47900991,1992.3,1991.0,0.515]
[1771248439124,1.43200991,1992.7,1991.0,0.515]
[1771248439436,0.47900991,1992.5,1991.0,0.515]
[1771248439633,3.19396424,1992.4,1991.0,0.515]
[1771248439833,3.42581391,1992.7,1991.0,0.515]
[1771248440033,2.2104537,1992.9,1991.0,0.515]
[1771248440034,0.47900991,1992.5,1991.0,0.515]
[1771248440260,2.71621034,1992.4,1991.0,0.515]
[1771248440440,0.47900991,1992.3,1991.2,0.001]
[1771248440760,3.19522025,1992.2,1991.2,0.001]
[1771248440935,0.47900991,1992.2,1991.2,0.001]
[1771248441135,2.71542177,1992.1,1991.2,0.001]
[1771248441440,0.47900991,1992.2,1991.2,0.001]
[1771248441636,3.19518095,1992.1,1991.2,0.001]
[1771248441837,2.71597869,1992.0,1991.2,0.001]
[1771248442038,2.71593211,1991.9,1991.2,0.001]
[1771248442255,0.47900991,1992.1,1991.2,0.001]
[1771248442566,2.71631922,1992.0,1991.2,0.001]
[1771248442729,0.47900991,1992.3,1991.2,0.001]
[1771248443040,2.71643654,1992.2,1991.2,0.001]
[1771248443241,3.19544645,1992.1,1991.2,0.001]
[1771248443559,2.71643654,1992.0,1991.2,0.001]
[1771248443756,0.47900991,1992.6,1991.2,0.001]
[1771248443953,0.0011,1992.9,1991.2,8.88106257]
[1771248443954,2.71672691,1992.5,1991.2,8.88106257]
[1771248444257,0.0011,1992.9,1991.2,9.36800498]
[1771248444426,2.71698527,1992.8,1991.2,9.36800498]
[1771248444633,2.71698527,1992.7,1991.2,9.36800498]
[1771248444852,0.0011,1992.9,1991.6,9.36700498]
[1771248445055,0.0011,1992.9,1991.7,1.417]
[1771248445657,0.47900991,1992.8,1991.2,0.001]
[1771248445854,0.47900991,1992.7,1991.3,0.512]
[1771248446489,0.0011,1992.9,1991.3,0.512]
[1771248446768,2.71644199,1992.8,1991.5,8.88006257]
[1771248446934,0.0011,1992.9,1991.5,8.88006257]
[1771248447747,0.0011,1992.9,1991.5,9.36700498]
[1771248448156,0.0011,1992.9,1991.9,8.88006257]
[1771248448398,0.0011,1992.9,1992.0,1.416]
[1771248448584,0.0011,1992.9,1992.0,2.67100366]
[1771248448737,0.0011,1992.9,1992.0,1.416]
[1771248449137,0.0011,1992.9,1992.3,8.88006257]
[1771248449537,0.47900991,1993.9,1992.3,8.88006257]
[1771248449745,0.47900991,1993.8,1992.0,1.416]
[1771248449942,0.47900991,1993.8,1992.3,8.88006257]
[1771248450907,0.47900991,1993.8,1992.3,10.13489272]
[1771248451181,0.0011,1994.0,1992.7,8.88006257]
[1771248451384,0.0011,1994.0,1992.8,1.416]
[1771248452545,0.0011,1994.0,1992.8,2.67048266]
[1771248452756,0.0011,1994.0,1992.8,1.416]
[1771248453783,0.48010991,1994.0,1991.9,1.74202549]
[1771248453965,0.48010991,1994.0,1992.2,8.88006257]
[1771248454272,0.48010991,1994.0,1992.2,9.36700498]
[1771248454473,0.48010991,1994.0,1992.6,8.88006257]
[1771248454696,0.48010991,1994.0,1992.7,1.416]
[1771248455509,0.0011,1993.7,1992.7,1.416]
[1771248455879,0.47900991,1993.0,1991.2,0.001]
[1771248456198,0.47900991,1992.5,1991.2,0.001]
[1771248456692,0.47900991,1992.4,1991.2,0.001]
[1771248458191,0.47900991,1992.2,1991.2,0.001]
[1771248458412,0.47900991,1992.0,1991.2,0.001]
[1771248458595,1.25508308,1991.9,1991.2,0.001]
[1771248459091,5.49934225,1992.0,1991.2,0.001]
[1771248459092,1.73407539,1992.0,1991.2,0.001]
[1771248460376,0.47900991,1992.0,1991.2,0.001]
[1771248460695,1.25498956,1992.1,1991.2,0.001]
[1771248461894,0.47900991,1992.0,1991.2,0.001]
[1771248462062,16.77714291,1991.9,1991.1,0.001]
[1771248462272,0.47900991,1991.7,1991.1,0.001]
[1771248462477,0.47900991,1991.7,1991.0,0.003]
[1771248462478,0.47900991,1991.7,1990.7,0.512]
[1771248462777,1.25527214,1991.6,1990.7,0.512]
[1771248463515,0.47900991,1991.2,1990.2,0.904]
[1771248464783,1.25558736,1991.1,1990.2,0.904]
[1771248465396,1.73458392,1991.2,1990.2,0.904]
[1771248465591,1.73458392,1991.2,1990.2,0.8568]
[1771248466104,1.73454561,1991.2,1990.2,0.8568]
[1771248466309,1.2554048,1991.4,1990.2,0.8568]
[1771248466520,2.69332073,1991.4,1990.2,0.8568]
[1771248466717,0.47891593,1991.4,1990.2,0.8568]
[1771248466906,1.73432269,1991.4,1990.2,0.8568]
[1771248467082,0.905,1991.6,1990.2,0.8568]
[1771248467083,1.25527214,1991.6,1990.2,0.8568]
[1771248467274,2.21427214,1991.6,1990.2,0.8568]
[1771248467480,14.7585,1991.5,1990.2,0.8568]
[1771248467701,3.859586,1991.5,1990.2,0.8568]
[1771248467906,5.02034749,1991.9,1990.2,0.8568]
[1771248467907,2.16018944,1991.8,1990.2,0.8568]